[Event "Titled Tuesday Blitz July 05 Early 2022"]
[White "Khripachenko, Alexander"]
[Black "Preotu, Razvan"]
[WhiteFideId "54184975"]
[BlackFideId "2613280"]
[WhiteElo "2147"]
[BlackElo "2407"]
[Result "1/2-1/2"]
[Round "05"]
[TimeControl "180+1"]
[Date "2022.07.05"]
[WhiteClock "0:02:55"]
[BlackClock "0:02:29"]

1. e4 {[%clk 0:02:57]}  c5 {[%clk 0:02:58]} 2. Nf3 {[%clk 0:02:58]}  d6 {[%clk 0:02:59]} 3. d4 {[%clk 0:02:58]}  cxd4 {[%clk 0:03:00]} 4. Nxd4 {[%clk 0:02:59]}  Nf6 {[%clk 0:03:00]} 5. f3 {[%clk 0:02:59]}  e5 {[%clk 0:02:53]} 6. Nb3 {[%clk 0:02:59]}  d5 {[%clk 0:02:52]} 7. Bg5 {[%clk 0:02:59]}  Be6 {[%clk 0:02:52]} 8. Bxf6 {[%clk 0:02:53]}  gxf6 {[%clk 0:02:53]} 9. exd5 {[%clk 0:02:53]}  Qxd5 {[%clk 0:02:52]} 10. Qxd5 {[%clk 0:02:53]}  Bxd5 {[%clk 0:02:53]} 11. Nc3 {[%clk 0:02:54]}  Be6 {[%clk 0:02:54]} 12. O-O-O {[%clk 0:02:55]}  Nc6 {[%clk 0:02:53]} 13. Bb5 {[%clk 0:02:53]}  Rc8 {[%clk 0:02:48]} 14. Nd5 {[%clk 0:02:52]}  f5 {[%clk 0:02:27]} 15. Nf6+ {[%clk 0:02:52]}  Ke7 {[%clk 0:02:27]} 16. Nd5+ {[%clk 0:02:53]}  Ke8 {[%clk 0:02:27]} 17. Nf6+ {[%clk 0:02:53]}  Ke7 {[%clk 0:02:28]} 18. Nd5+ {[%clk 0:02:54]}  Ke8 {[%clk 0:02:28]} 19. Nf6+ {[%clk 0:02:55]}  Ke7 {[%clk 0:02:29]} 1/2-1/2


[Site "https://www.chess.com"]

[Event "Titled Tuesday Blitz July 05 Early 2022"]
[White "Kozlov, Oleg"]
[Black "Kosteniuk, Alexandra"]
[WhiteFideId "4104544"]
[BlackFideId "4128125"]
[WhiteElo "2132"]
[BlackElo "2469"]
[Result "0-1"]
[Round "05"]
[TimeControl "180+1"]
[Date "2022.07.05"]
[WhiteClock "0:00:04"]
[BlackClock "0:00:16"]

1. c4 {[%clk 0:03:00]}  e5 {[%clk 0:02:27]} 2. e3 {[%clk 0:02:59]}  Nf6 {[%clk 0:02:23]} 3. a3 {[%clk 0:02:59]}  g6 {[%clk 0:02:20]} 4. Nf3 {[%clk 0:02:43]}  d6 {[%clk 0:02:14]} 5. d4 {[%clk 0:02:32]}  e4 {[%clk 0:02:02]} 6. Nfd2 {[%clk 0:02:32]}  Bg7 {[%clk 0:02:00]} 7. Nc3 {[%clk 0:02:31]}  Qe7 {[%clk 0:02:00]} 8. Be2 {[%clk 0:02:25]}  h5 {[%clk 0:01:58]} 9. b4 {[%clk 0:02:14]}  Nc6 {[%clk 0:01:51]} 10. Bb2 {[%clk 0:02:13]}  Bf5 {[%clk 0:01:49]} 11. Qb3 {[%clk 0:02:04]}  a5 {[%clk 0:01:21]} 12. c5 {[%clk 0:01:49]}  axb4 {[%clk 0:01:10]} 13. axb4 {[%clk 0:01:50]}  Rxa1+ {[%clk 0:01:09]} 14. Bxa1 {[%clk 0:01:51]}  O-O {[%clk 0:01:08]} 15. O-O {[%clk 0:01:39]}  Rd8 {[%clk 0:01:06]} 16. b5 {[%clk 0:01:33]}  Nb8 {[%clk 0:00:55]} 17. cxd6 {[%clk 0:01:33]}  cxd6 {[%clk 0:00:51]} 18. Bb2 {[%clk 0:01:24]}  Nbd7 {[%clk 0:00:50]} 19. Ra1 {[%clk 0:01:20]}  Nb6 {[%clk 0:00:47]} 20. Ra7 {[%clk 0:01:15]}  Qc7 {[%clk 0:00:44]} 21. h3 {[%clk 0:00:59]}  d5 {[%clk 0:00:43]} 22. Qa2 {[%clk 0:00:47]}  Nc8 {[%clk 0:00:37]} 23. Ra8 {[%clk 0:00:43]}  Be6 {[%clk 0:00:36]} 24. Nb3 {[%clk 0:00:41]}  Bf8 {[%clk 0:00:31]} 25. Qa5 {[%clk 0:00:35]}  b6 {[%clk 0:00:31]} 26. Qa1 {[%clk 0:00:32]}  Bb4 {[%clk 0:00:31]} 27. Ra4 {[%clk 0:00:30]}  Bd6 {[%clk 0:00:31]} 28. Ra8 {[%clk 0:00:21]}  Bh2+ {[%clk 0:00:25]} 29. Kh1 {[%clk 0:00:21]}  Bd6 {[%clk 0:00:26]} 30. Kg1 {[%clk 0:00:20]}  Ne7 {[%clk 0:00:23]} 31. Ra7 {[%clk 0:00:20]}  Qb8 {[%clk 0:00:23]} 32. Ra6 {[%clk 0:00:16]}  Nf5 {[%clk 0:00:21]} 33. Na4 {[%clk 0:00:15]}  Bc7 {[%clk 0:00:21]} 34. Nc3 {[%clk 0:00:12]}  Nh4 {[%clk 0:00:20]} 35. Nd2 {[%clk 0:00:07]}  Qc8 {[%clk 0:00:20]} 36. Bf1 {[%clk 0:00:07]}  Nh7 {[%clk 0:00:18]} 37. g3 {[%clk 0:00:05]}  Nf5 {[%clk 0:00:18]} 38. Bg2 {[%clk 0:00:04]}  Nd6 {[%clk 0:00:17]} 39. Qf1 {[%clk 0:00:04]}  Ng5 {[%clk 0:00:16]} 40. h4 {[%clk 0:00:04]}  Nh7 {[%clk 0:00:17]} 41. Bh3 {[%clk 0:00:04]}  Bxh3 {[%clk 0:00:16]} 0-1


[Site "https://www.chess.com"]

[Event "Titled Tuesday Blitz July 05 Early 2022"]
[White "Melkumyan, Hrant"]
[Black "Vachier-Lagrave, Maxime"]
[WhiteFideId "13302485"]
[BlackFideId "623539"]
[WhiteElo "2604"]
[BlackElo "2784"]
[Result "1-0"]
[Round "05"]
[TimeControl "180+1"]
[Date "2022.07.05"]
[WhiteClock "0:00:50"]
[BlackClock "0:00:48"]

1. Nf3 {[%clk 0:03:00]}  Nf6 {[%clk 0:02:59]} 2. c4 {[%clk 0:03:00]}  c6 {[%clk 0:02:53]} 3. Nc3 {[%clk 0:02:58]}  d5 {[%clk 0:02:53]} 4. e3 {[%clk 0:02:58]}  e6 {[%clk 0:02:49]} 5. b3 {[%clk 0:02:55]}  Bd6 {[%clk 0:02:48]} 6. Bb2 {[%clk 0:02:55]}  O-O {[%clk 0:02:48]} 7. Be2 {[%clk 0:02:55]}  Nbd7 {[%clk 0:02:48]} 8. d4 {[%clk 0:02:48]}  Re8 {[%clk 0:02:44]} 9. O-O {[%clk 0:02:48]}  a6 {[%clk 0:02:39]} 10. Qc2 {[%clk 0:02:48]}  b5 {[%clk 0:02:38]} 11. Rad1 {[%clk 0:02:46]}  b4 {[%clk 0:02:29]} 12. Nb1 {[%clk 0:02:41]}  a5 {[%clk 0:02:23]} 13. Nbd2 {[%clk 0:02:40]}  Ba6 {[%clk 0:02:21]} 14. Rfe1 {[%clk 0:02:30]}  Qc7 {[%clk 0:02:12]} 15. e4 {[%clk 0:02:21]}  dxe4 {[%clk 0:02:12]} 16. Nxe4 {[%clk 0:02:22]}  Nxe4 {[%clk 0:02:11]} 17. Qxe4 {[%clk 0:02:23]}  Nf8 {[%clk 0:01:46]} 18. Bd3 {[%clk 0:02:18]}  c5 {[%clk 0:01:22]} 19. dxc5 {[%clk 0:02:10]}  Bxc5 {[%clk 0:01:23]} 20. Qg4 {[%clk 0:01:55]}  f5 {[%clk 0:01:15]} 21. Qh5 {[%clk 0:01:44]}  h6 {[%clk 0:01:05]} 22. Bxf5 {[%clk 0:01:31]}  Rad8 {[%clk 0:01:05]} 23. Be4 {[%clk 0:01:24]}  Rxd1 {[%clk 0:00:56]} 24. Rxd1 {[%clk 0:01:25]}  Rd8 {[%clk 0:00:56]} 25. Ne5 {[%clk 0:01:21]}  Rxd1+ {[%clk 0:00:55]} 26. Qxd1 {[%clk 0:01:20]}  Be7 {[%clk 0:00:56]} 27. Nf3 {[%clk 0:01:11]}  Bb7 {[%clk 0:00:55]} 28. Qd3 {[%clk 0:01:08]}  Bxe4 {[%clk 0:00:54]} 29. Qxe4 {[%clk 0:01:09]}  Qd7 {[%clk 0:00:54]} 30. Qd4 {[%clk 0:01:04]}  Qxd4 {[%clk 0:00:54]} 31. Bxd4 {[%clk 0:01:04]}  Nd7 {[%clk 0:00:53]} 32. Ne5 {[%clk 0:00:57]}  Bf6 {[%clk 0:00:52]} 33. Nc6 {[%clk 0:00:56]}  Bxd4 {[%clk 0:00:48]} 34. Nxd4 {[%clk 0:00:57]}  Nc5 {[%clk 0:00:48]} 35. Nc6 {[%clk 0:00:55]}  Nb7 {[%clk 0:00:48]} 36. f4 {[%clk 0:00:51]}  Kf7 {[%clk 0:00:47]} 37. Kf2 {[%clk 0:00:52]}  Ke8 {[%clk 0:00:48]} 38. Ke3 {[%clk 0:00:52]}  Kd7 {[%clk 0:00:48]} 39. Ne5+ {[%clk 0:00:51]}  Kc7 {[%clk 0:00:48]} 40. Kd4 {[%clk 0:00:50]}  Nd6 {[%clk 0:00:48]} 41. g4 {[%clk 0:00:50]} 1-0


[Site "https://www.chess.com"]

[Event "Titled Tuesday Blitz July 05 Early 2022"]
[White "Molina, Roberto Junio Brito"]
[Black "Malek, Jan"]
[WhiteFideId "2109450"]
[BlackFideId "21864080"]
[WhiteElo "2432"]
[BlackElo "2145"]
[Result "0-1"]
[Round "05"]
[TimeControl "180+1"]
[Date "2022.07.05"]
[WhiteClock "0:00:04"]
[BlackClock "0:00:08"]

1. d4 {[%clk 0:02:39]}  Nf6 {[%clk 0:02:59]} 2. Nf3 {[%clk 0:02:37]}  d5 {[%clk 0:02:58]} 3. e3 {[%clk 0:02:38]}  c5 {[%clk 0:02:58]} 4. c3 {[%clk 0:02:36]}  Nc6 {[%clk 0:02:57]} 5. Nbd2 {[%clk 0:02:36]}  cxd4 {[%clk 0:02:50]} 6. exd4 {[%clk 0:02:35]}  Bg4 {[%clk 0:02:51]} 7. Bd3 {[%clk 0:02:35]}  Qc7 {[%clk 0:02:51]} 8. O-O {[%clk 0:02:33]}  e6 {[%clk 0:02:51]} 9. Re1 {[%clk 0:02:32]}  Bd6 {[%clk 0:02:51]} 10. Nf1 {[%clk 0:02:32]}  h6 {[%clk 0:02:50]} 11. g3 {[%clk 0:02:30]}  a6 {[%clk 0:02:47]} 12. Ne3 {[%clk 0:02:30]}  Bh5 {[%clk 0:02:45]} 13. Ng2 {[%clk 0:02:29]}  g5 {[%clk 0:02:41]} 14. Bd2 {[%clk 0:02:12]}  Ne7 {[%clk 0:02:37]} 15. Rc1 {[%clk 0:02:06]}  Bg6 {[%clk 0:02:36]} 16. Bxg6 {[%clk 0:02:02]}  Nxg6 {[%clk 0:02:37]} 17. Be3 {[%clk 0:02:02]}  Ne4 {[%clk 0:02:34]} 18. Nd2 {[%clk 0:02:01]}  f5 {[%clk 0:02:33]} 19. Nxe4 {[%clk 0:01:58]}  dxe4 {[%clk 0:02:22]} 20. Qh5 {[%clk 0:01:23]}  Qf7 {[%clk 0:02:21]} 21. f3 {[%clk 0:01:20]}  f4 {[%clk 0:02:16]} 22. fxe4 {[%clk 0:01:05]}  fxe3 {[%clk 0:02:11]} 23. Rf1 {[%clk 0:01:05]}  Qg7 {[%clk 0:02:04]} 24. e5 {[%clk 0:01:03]}  Be7 {[%clk 0:02:01]} 25. Nxe3 {[%clk 0:01:03]}  O-O-O {[%clk 0:02:00]} 26. Qg4 {[%clk 0:00:52]}  Qg8 {[%clk 0:01:55]} 27. Qe4 {[%clk 0:00:51]}  h5 {[%clk 0:01:50]} 28. c4 {[%clk 0:00:44]}  h4 {[%clk 0:01:45]} 29. c5 {[%clk 0:00:37]}  hxg3 {[%clk 0:01:19]} 30. c6 {[%clk 0:00:37]}  Nf4 {[%clk 0:01:19]} 31. Nc4 {[%clk 0:00:14]}  Rxd4 {[%clk 0:00:56]} 32. Nb6+ {[%clk 0:00:14]}  Kb8 {[%clk 0:00:45]} 33. c7+ {[%clk 0:00:14]}  Ka7 {[%clk 0:00:45]} 34. c8=N+ {[%clk 0:00:11]}  Kb8 {[%clk 0:00:44]} 35. Qc2 {[%clk 0:00:07]}  Bc5 {[%clk 0:00:26]} 36. Qxc5 {[%clk 0:00:07]}  Ne2+ {[%clk 0:00:26]} 37. Kg2 {[%clk 0:00:07]}  Rxh2+ {[%clk 0:00:26]} 38. Kf3 {[%clk 0:00:08]}  Rd3+ {[%clk 0:00:12]} 39. Qe3 {[%clk 0:00:06]}  Qf7+ {[%clk 0:00:08]} 40. Ke4 {[%clk 0:00:05]}  Qg6+ {[%clk 0:00:08]} 41. Kf3 {[%clk 0:00:04]}  Qf5# {[%clk 0:00:08]} 0-1


[Site "https://www.chess.com"]

[Event "Titled Tuesday Blitz July 05 Early 2022"]
[White "Saveliev, Alexei"]
[Black "Kadric, Denis"]
[WhiteFideId "24128546"]
[BlackFideId "14403803"]
[WhiteElo "2281"]
[BlackElo "2657"]
[Result "0-1"]
[Round "05"]
[TimeControl "180+1"]
[Date "2022.07.05"]
[WhiteClock "0:00:01"]
[BlackClock "0:00:06"]

1. c4 {[%clk 0:03:00]}  d6 {[%clk 0:02:59]} 2. Nc3 {[%clk 0:03:01]}  g6 {[%clk 0:02:59]} 3. d4 {[%clk 0:03:01]}  Bg7 {[%clk 0:03:00]} 4. e4 {[%clk 0:03:02]}  Nd7 {[%clk 0:03:00]} 5. f4 {[%clk 0:03:01]}  e5 {[%clk 0:03:00]} 6. fxe5 {[%clk 0:03:02]}  dxe5 {[%clk 0:03:00]} 7. d5 {[%clk 0:03:02]}  Nh6 {[%clk 0:02:54]} 8. Nf3 {[%clk 0:02:59]}  O-O {[%clk 0:02:54]} 9. Bd3 {[%clk 0:02:52]}  f6 {[%clk 0:02:36]} 10. O-O {[%clk 0:02:51]}  Nf7 {[%clk 0:02:36]} 11. Be3 {[%clk 0:02:49]}  c5 {[%clk 0:02:35]} 12. dxc6 {[%clk 0:02:40]}  bxc6 {[%clk 0:02:36]} 13. Qe2 {[%clk 0:02:34]}  Qe7 {[%clk 0:02:35]} 14. Rad1 {[%clk 0:02:33]}  Nc5 {[%clk 0:02:33]} 15. Bc2 {[%clk 0:02:33]}  a5 {[%clk 0:02:20]} 16. Na4 {[%clk 0:02:30]}  Ne6 {[%clk 0:02:20]} 17. Nb6 {[%clk 0:02:12]}  Rb8 {[%clk 0:02:21]} 18. Nxc8 {[%clk 0:02:12]}  Rfxc8 {[%clk 0:02:22]} 19. c5 {[%clk 0:01:56]}  Rxb2 {[%clk 0:02:09]} 20. Rb1 {[%clk 0:01:54]}  Rcb8 {[%clk 0:02:01]} 21. Rxb2 {[%clk 0:01:53]}  Rxb2 {[%clk 0:02:02]} 22. Qc4 {[%clk 0:01:53]}  Rb4 {[%clk 0:02:00]} 23. Qc3 {[%clk 0:01:50]}  Bh6 {[%clk 0:01:51]} 24. Bxh6 {[%clk 0:01:27]}  Nxh6 {[%clk 0:01:52]} 25. Bb3 {[%clk 0:01:28]}  Nf7 {[%clk 0:01:39]} 26. Rc1 {[%clk 0:01:12]}  Kg7 {[%clk 0:01:35]} 27. h3 {[%clk 0:01:09]}  Nfg5 {[%clk 0:01:30]} 28. Nd2 {[%clk 0:01:03]}  Nd4 {[%clk 0:01:23]} 29. Qe3 {[%clk 0:01:02]}  Nge6 {[%clk 0:01:19]} 30. Kh2 {[%clk 0:00:51]}  Nxc5 {[%clk 0:01:16]} 31. Bd1 {[%clk 0:00:50]}  Nde6 {[%clk 0:01:07]} 32. Bg4 {[%clk 0:00:47]}  Qd6 {[%clk 0:00:51]} 33. Nc4 {[%clk 0:00:31]}  Qd4 {[%clk 0:00:41]} 34. Qxd4 {[%clk 0:00:31]}  Nxd4 {[%clk 0:00:26]} 35. Nxe5 {[%clk 0:00:22]}  fxe5 {[%clk 0:00:19]} 36. Rxc5 {[%clk 0:00:22]}  Kf6 {[%clk 0:00:20]} 37. Rxa5 {[%clk 0:00:21]}  Rb2 {[%clk 0:00:17]} 38. h4 {[%clk 0:00:11]}  h5 {[%clk 0:00:18]} 39. Bh3 {[%clk 0:00:10]}  Re2 {[%clk 0:00:17]} 40. Ra8 {[%clk 0:00:08]}  Rxe4 {[%clk 0:00:17]} 41. a4 {[%clk 0:00:08]}  Re2 {[%clk 0:00:16]} 42. a5 {[%clk 0:00:08]}  Ra2 {[%clk 0:00:16]} 43. a6 {[%clk 0:00:08]}  Ke7 {[%clk 0:00:13]} 44. Rg8 {[%clk 0:00:04]}  Rxa6 {[%clk 0:00:12]} 45. Rxg6 {[%clk 0:00:04]}  e4 {[%clk 0:00:11]} 46. Rg5 {[%clk 0:00:04]}  Kd6 {[%clk 0:00:10]} 47. Rxh5 {[%clk 0:00:04]}  e3 {[%clk 0:00:11]} 48. Rh6+ {[%clk 0:00:04]}  Kc5 {[%clk 0:00:10]} 49. Bg4 {[%clk 0:00:04]}  e2 {[%clk 0:00:09]} 50. Rh5+ {[%clk 0:00:04]}  Kc4 {[%clk 0:00:08]} 51. Re5 {[%clk 0:00:05]}  Ra2 {[%clk 0:00:06]} 52. h5 {[%clk 0:00:04]}  Kd3 {[%clk 0:00:05]} 53. h6 {[%clk 0:00:04]}  Ra7 {[%clk 0:00:05]} 54. Kh3 {[%clk 0:00:02]}  Rh7 {[%clk 0:00:05]} 55. Bxe2+ {[%clk 0:00:02]}  Nxe2 {[%clk 0:00:05]} 56. Kg4 {[%clk 0:00:02]}  Rxh6 {[%clk 0:00:05]} 57. Kg5 {[%clk 0:00:01]}  Rd6 {[%clk 0:00:06]} 0-1


[Site "https://www.chess.com"]

[Event "Titled Tuesday Blitz July 05 Early 2022"]
[White "Shimanov, Aleksandr"]
[Black "Mitrabha, Guha"]
[WhiteFideId "4198603"]
[BlackFideId "5057000"]
[WhiteElo "2605"]
[BlackElo "2499"]
[Result "1/2-1/2"]
[Round "05"]
[TimeControl "180+1"]
[Date "2022.07.05"]
[WhiteClock "0:00:03"]
[BlackClock "0:00:09"]

1. e4 {[%clk 0:03:00]}  c6 {[%clk 0:02:58]} 2. d4 {[%clk 0:02:58]}  d5 {[%clk 0:02:58]} 3. Nd2 {[%clk 0:02:59]}  dxe4 {[%clk 0:02:58]} 4. Nxe4 {[%clk 0:03:00]}  Nf6 {[%clk 0:02:59]} 5. Nxf6+ {[%clk 0:02:55]}  exf6 {[%clk 0:03:00]} 6. c3 {[%clk 0:02:55]}  Bd6 {[%clk 0:03:00]} 7. Bd3 {[%clk 0:02:53]}  O-O {[%clk 0:03:01]} 8. Qc2 {[%clk 0:02:53]}  Re8+ {[%clk 0:03:01]} 9. Be3 {[%clk 0:02:53]}  h5 {[%clk 0:03:02]} 10. Nf3 {[%clk 0:02:52]}  Nd7 {[%clk 0:02:52]} 11. O-O {[%clk 0:02:51]}  Nf8 {[%clk 0:02:52]} 12. Rfe1 {[%clk 0:02:50]}  Qc7 {[%clk 0:02:39]} 13. h3 {[%clk 0:02:39]}  Be6 {[%clk 0:02:35]} 14. c4 {[%clk 0:02:36]}  Rad8 {[%clk 0:02:28]} 15. Rad1 {[%clk 0:02:28]}  Qd7 {[%clk 0:02:14]} 16. Bf1 {[%clk 0:02:19]}  Bf5 {[%clk 0:02:11]} 17. Qc3 {[%clk 0:02:19]}  Bb8 {[%clk 0:02:08]} 18. d5 {[%clk 0:02:12]}  Qc7 {[%clk 0:02:03]} 19. g3 {[%clk 0:01:19]}  cxd5 {[%clk 0:01:36]} 20. cxd5 {[%clk 0:01:18]}  Qxc3 {[%clk 0:01:34]} 21. bxc3 {[%clk 0:01:19]}  Be4 {[%clk 0:01:29]} 22. Bg2 {[%clk 0:01:12]}  Bxd5 {[%clk 0:01:26]} 23. a4 {[%clk 0:01:11]}  Bc6 {[%clk 0:01:24]} 24. a5 {[%clk 0:01:10]}  Ne6 {[%clk 0:01:22]} 25. Nd4 {[%clk 0:01:08]}  Nxd4 {[%clk 0:01:21]} 26. cxd4 {[%clk 0:01:09]}  Bxg2 {[%clk 0:01:15]} 27. Kxg2 {[%clk 0:01:09]}  Rd5 {[%clk 0:01:15]} 28. Rb1 {[%clk 0:01:09]}  Re7 {[%clk 0:01:11]} 29. Rec1 {[%clk 0:01:07]}  Rd8 {[%clk 0:00:55]} 30. Rb3 {[%clk 0:00:58]}  Kh7 {[%clk 0:00:52]} 31. Rcb1 {[%clk 0:00:58]}  Rdd7 {[%clk 0:00:51]} 32. g4 {[%clk 0:00:55]}  Kg6 {[%clk 0:00:46]} 33. Rb5 {[%clk 0:00:55]}  hxg4 {[%clk 0:00:46]} 34. hxg4 {[%clk 0:00:56]}  a6 {[%clk 0:00:46]} 35. Rh5 {[%clk 0:00:52]}  Re4 {[%clk 0:00:38]} 36. Kf3 {[%clk 0:00:49]}  Re8 {[%clk 0:00:34]} 37. Rb3 {[%clk 0:00:41]}  Ba7 {[%clk 0:00:33]} 38. Rb4 {[%clk 0:00:38]}  Re6 {[%clk 0:00:27]} 39. Rh8 {[%clk 0:00:32]}  Red6 {[%clk 0:00:26]} 40. Ke4 {[%clk 0:00:32]}  b5 {[%clk 0:00:23]} 41. axb6 {[%clk 0:00:28]}  Bxb6 {[%clk 0:00:22]} 42. Ra8 {[%clk 0:00:27]}  a5 {[%clk 0:00:19]} 43. Rc4 {[%clk 0:00:26]}  Re6+ {[%clk 0:00:19]} 44. Kd3 {[%clk 0:00:26]}  f5 {[%clk 0:00:19]} 45. gxf5+ {[%clk 0:00:25]}  Kxf5 {[%clk 0:00:20]} 46. Ra6 {[%clk 0:00:25]}  Kg6 {[%clk 0:00:19]} 47. Bd2 {[%clk 0:00:19]}  Red6 {[%clk 0:00:18]} 48. Bc3 {[%clk 0:00:20]}  f6 {[%clk 0:00:18]} 49. Ra4 {[%clk 0:00:19]}  Kf7 {[%clk 0:00:15]} 50. Ke4 {[%clk 0:00:18]}  g6 {[%clk 0:00:15]} 51. Kf3 {[%clk 0:00:13]}  g5 {[%clk 0:00:15]} 52. Ke4 {[%clk 0:00:13]}  Kg6 {[%clk 0:00:16]} 53. Kd3 {[%clk 0:00:13]}  Kf5 {[%clk 0:00:15]} 54. Ra2 {[%clk 0:00:09]}  Bxd4 {[%clk 0:00:14]} 55. Rxd6 {[%clk 0:00:08]}  Rxd6 {[%clk 0:00:14]} 56. Bxd4 {[%clk 0:00:08]}  Rd5 {[%clk 0:00:15]} 57. Kc4 {[%clk 0:00:08]}  Rd6 {[%clk 0:00:14]} 58. Rxa5+ {[%clk 0:00:08]}  Kf4 {[%clk 0:00:15]} 59. Ra3 {[%clk 0:00:08]}  f5 {[%clk 0:00:15]} 60. Rg3 {[%clk 0:00:08]}  g4 {[%clk 0:00:14]} 61. Kd3 {[%clk 0:00:07]}  Ra6 {[%clk 0:00:14]} 62. Be3+ {[%clk 0:00:07]}  Ke5 {[%clk 0:00:14]} 63. Rg1 {[%clk 0:00:07]}  f4 {[%clk 0:00:14]} 64. Bd2 {[%clk 0:00:08]}  Rd6+ {[%clk 0:00:13]} 65. Ke2 {[%clk 0:00:07]}  Kf5 {[%clk 0:00:13]} 66. Rh1 {[%clk 0:00:05]}  Re6+ {[%clk 0:00:09]} 67. Kf1 {[%clk 0:00:05]}  Rd6 {[%clk 0:00:10]} 68. Be1 {[%clk 0:00:05]}  Ke4 {[%clk 0:00:10]} 69. Rh8 {[%clk 0:00:05]}  Kf3 {[%clk 0:00:10]} 70. Ra8 {[%clk 0:00:06]}  Rd3 {[%clk 0:00:11]} 71. Rc8 {[%clk 0:00:05]}  Rb3 {[%clk 0:00:10]} 72. Rf8 {[%clk 0:00:05]}  Rd3 {[%clk 0:00:10]} 73. Re8 {[%clk 0:00:05]}  Rd4 {[%clk 0:00:10]} 74. Rc8 {[%clk 0:00:05]}  Rd3 {[%clk 0:00:11]} 75. Rb8 {[%clk 0:00:04]}  Ra3 {[%clk 0:00:11]} 76. Rb4 {[%clk 0:00:04]}  Rd3 {[%clk 0:00:11]} 77. Rb6 {[%clk 0:00:04]}  Ra3 {[%clk 0:00:11]} 78. Rb7 {[%clk 0:00:05]}  Rd3 {[%clk 0:00:11]} 79. Re7 {[%clk 0:00:05]}  Ra3 {[%clk 0:00:12]} 80. Rd7 {[%clk 0:00:05]}  Rb3 {[%clk 0:00:11]} 81. Bd2 {[%clk 0:00:05]}  Rb1+ {[%clk 0:00:11]} 82. Be1 {[%clk 0:00:05]}  Rb3 {[%clk 0:00:12]} 83. Re7 {[%clk 0:00:05]}  Rd3 {[%clk 0:00:12]} 84. Re2 {[%clk 0:00:06]}  Rd7 {[%clk 0:00:10]} 85. Rc2 {[%clk 0:00:06]}  Rd3 {[%clk 0:00:10]} 86. Bd2 {[%clk 0:00:06]}  Rb3 {[%clk 0:00:09]} 87. Be1 {[%clk 0:00:04]}  Rd3 {[%clk 0:00:09]} 88. Rb2 {[%clk 0:00:04]}  Ra3 {[%clk 0:00:09]} 89. Rc2 {[%clk 0:00:03]}  Rd3 {[%clk 0:00:09]} 1/2-1/2


[Site "https://www.chess.com"]

[Event "Titled Tuesday Blitz July 05 Early 2022"]
[White "Stoleriu, George"]
[Black "Paichadze, Luka"]
[WhiteFideId "1227505"]
[BlackFideId "13602934"]
[WhiteElo "2194"]
[BlackElo "2537"]
[Result "0-1"]
[Round "05"]
[TimeControl "180+1"]
[Date "2022.07.05"]
[WhiteClock "0:00:03"]
[BlackClock "0:00:16"]

1. e4 {[%clk 0:02:54]}  c6 {[%clk 0:03:00]} 2. Nf3 {[%clk 0:02:53]}  d5 {[%clk 0:03:00]} 3. exd5 {[%clk 0:02:54]}  cxd5 {[%clk 0:02:59]} 4. Ne5 {[%clk 0:02:55]}  a6 {[%clk 0:02:58]} 5. d4 {[%clk 0:02:54]}  Nf6 {[%clk 0:02:57]} 6. c4 {[%clk 0:02:54]}  Nc6 {[%clk 0:02:53]} 7. Nc3 {[%clk 0:02:51]}  e6 {[%clk 0:02:49]} 8. Nxc6 {[%clk 0:02:49]}  bxc6 {[%clk 0:02:49]} 9. Bd3 {[%clk 0:02:50]}  Be7 {[%clk 0:02:45]} 10. O-O {[%clk 0:02:49]}  O-O {[%clk 0:02:44]} 11. Re1 {[%clk 0:02:48]}  a5 {[%clk 0:02:42]} 12. c5 {[%clk 0:02:41]}  Ba6 {[%clk 0:02:40]} 13. Bf4 {[%clk 0:02:40]}  Bxd3 {[%clk 0:02:34]} 14. Qxd3 {[%clk 0:02:41]}  Nd7 {[%clk 0:02:34]} 15. Na4 {[%clk 0:02:38]}  Qc8 {[%clk 0:02:31]} 16. Rad1 {[%clk 0:02:37]}  Qb7 {[%clk 0:02:26]} 17. b3 {[%clk 0:02:37]}  Bf6 {[%clk 0:02:25]} 18. Bd6 {[%clk 0:02:31]}  Rfe8 {[%clk 0:02:24]} 19. f4 {[%clk 0:02:32]}  g6 {[%clk 0:02:23]} 20. Re3 {[%clk 0:02:30]}  Bg7 {[%clk 0:02:19]} 21. g4 {[%clk 0:02:23]}  Nf6 {[%clk 0:02:17]} 22. Qe2 {[%clk 0:02:06]}  Ne4 {[%clk 0:02:15]} 23. Rxe4 {[%clk 0:02:03]}  dxe4 {[%clk 0:02:15]} 24. Qxe4 {[%clk 0:02:04]}  Rad8 {[%clk 0:02:12]} 25. g5 {[%clk 0:02:02]}  Qb5 {[%clk 0:01:58]} 26. Nb2 {[%clk 0:01:54]}  Bf8 {[%clk 0:01:51]} 27. Nc4 {[%clk 0:01:45]}  a4 {[%clk 0:01:49]} 28. Bxf8 {[%clk 0:01:46]}  Rxf8 {[%clk 0:01:49]} 29. Nd6 {[%clk 0:01:45]}  Qb4 {[%clk 0:01:08]} 30. Qe5 {[%clk 0:00:54]}  Rxd6 {[%clk 0:01:08]} 31. cxd6 {[%clk 0:00:49]}  axb3 {[%clk 0:01:08]} 32. axb3 {[%clk 0:00:30]}  Rd8 {[%clk 0:01:07]} 33. Qc5 {[%clk 0:00:27]}  Qxb3 {[%clk 0:01:05]} 34. Re1 {[%clk 0:00:26]}  Qf3 {[%clk 0:01:01]} 35. Rf1 {[%clk 0:00:22]}  Qe3+ {[%clk 0:00:54]} 36. Kh1 {[%clk 0:00:21]}  Qe4+ {[%clk 0:00:54]} 37. Kg1 {[%clk 0:00:22]}  Qd5 {[%clk 0:00:45]} 38. Rc1 {[%clk 0:00:18]}  Rxd6 {[%clk 0:00:44]} 39. Qxd5 {[%clk 0:00:15]}  Rxd5 {[%clk 0:00:38]} 40. Rc4 {[%clk 0:00:12]}  Rf5 {[%clk 0:00:38]} 41. Kf2 {[%clk 0:00:05]}  Rxf4+ {[%clk 0:00:38]} 42. Kg3 {[%clk 0:00:06]}  Re4 {[%clk 0:00:36]} 43. Kf3 {[%clk 0:00:06]}  Rh4 {[%clk 0:00:22]} 44. Kg3 {[%clk 0:00:06]}  Rh5 {[%clk 0:00:18]} 45. h4 {[%clk 0:00:06]}  h6 {[%clk 0:00:18]} 46. gxh6 {[%clk 0:00:05]}  Rd5 {[%clk 0:00:17]} 47. Kf4 {[%clk 0:00:03]}  Kh7 {[%clk 0:00:16]} 48. Ke3 {[%clk 0:00:02]}  Kxh6 {[%clk 0:00:15]} 49. Rxc6 {[%clk 0:00:02]}  Rh5 {[%clk 0:00:15]} 50. Rc7 {[%clk 0:00:03]}  Kg7 {[%clk 0:00:16]} 51. Kd3 {[%clk 0:00:03]}  Rxh4 {[%clk 0:00:16]} 0-1


[Site "https://www.chess.com"]